bitfinex/quotes_ETHUSD_20220220
["timestamp","ask_amount","ask_price","bid_price","bid_amount"]
[1645378959435,1.60574625,2646.2,2645.6,0.05808979]
[1645378959640,1.60574625,2646.2,2645.9,0.00212213]
[1645378960038,1.60574625,2646.1,2645.9,0.00212213]
[1645378960240,1.60574625,2646.0,2645.9,0.00212213]
[1645378960440,0.00291332,2646.1,2645.9,0.00212213]
[1645378960639,0.00291332,2646.1,2645.7,1.14560213]
[1645378960839,0.00291332,2646.1,2645.9,0.00216267]
[1645378961041,1.60865957,2646.1,2645.9,0.00216267]
[1645378961242,1.60574625,2646.0,2645.9,0.00216267]
[1645378961687,0.00291332,2646.1,2645.8,0.05808575]
[1645378962088,0.00291332,2646.1,2645.8,0.06024844]
[1645378962590,1.60865957,2646.1,2645.9,0.05808575]
[1645378962791,0.00291332,2646.1,2645.9,0.05808575]
[1645378963393,1.60865957,2646.1,2645.9,0.05808575]
[1645378963589,0.10688857,2646.0,2645.9,0.05808575]
[1645378963791,0.00291332,2646.1,2645.9,0.05808575]
[1645378964390,0.00291332,2646.1,2645.9,0.06026111]
[1645378965236,0.95333928,2646.5,2646.0,0.05808575]
[1645378966039,0.00280694,2646.5,2646.0,0.05808575]
[1645378966840,0.00280694,2646.5,2646.1,0.00217501]
[1645378967041,0.00280694,2646.5,2646.0,0.05550164]
[1645378967240,0.00280694,2646.5,2646.2,0.05808575]
[1645378967545,0.00280694,2646.5,2645.8,0.05808575]
[1645378969287,0.00280694,2646.5,2646.0,0.00102189]
[1645378969687,0.00280694,2646.5,2646.1,0.05807609]
[1645378970891,0.72083741,2646.5,2646.1,0.05807609]
[1645378972090,0.71803047,2646.4,2646.1,0.05807609]
[1645378972935,0.72083741,2646.5,2646.1,0.05807609]
[1645378973138,0.71803047,2646.4,2646.1,0.05807609]
[1645378975136,0.72084671,2646.4,2646.1,0.05807609]
[1645378978993,11.54,2646.6,2646.4,0.77797106]
[1645378979691,0.9569975,2646.7,2646.4,0.77797106]
[1645378979895,0.9569975,2646.7,2646.4,0.83608481]
[1645378980092,1.43577211,2646.9,2646.4,0.83608481]
[1645378980093,0.9569975,2646.9,2646.4,0.83608481]
[1645378980344,0.9569975,2647.1,2646.4,0.83608481]
[1645378980546,0.9569975,2647.2,2646.5,3.5]
[1645378980742,4.53717211,2647.4,2646.5,3.5]
[1645378980743,0.9569975,2647.4,2646.5,4.55328724]
[1645378980943,0.9569975,2647.6,2647.2,0.98917059]
[1645378981140,0.25,2647.7,2647.2,0.98917059]
[1645378981340,0.00237536,2647.5,2647.3,0.05811375]
[1645378982139,0.79838113,2647.7,2647.3,0.05811375]
[1645378982539,0.00237564,2647.5,2647.3,0.05811375]
[1645378982741,0.00237564,2647.5,2647.3,1.01231825]
[1645378983143,0.00237564,2647.5,2647.4,0.05811375]
[1645378983341,0.79838113,2647.7,2647.4,0.05811375]
[1645378984292,3.04121726,2648.1,2647.4,0.05811375]
[1645378984495,1.60544515,2648.0,2647.4,1.05811375]
[1645378984786,1.60544515,2647.9,2647.5,0.05811375]
[1645378985085,1.60544515,2647.8,2647.5,0.05811375]
[1645378985285,0.95461134,2648.2,2647.5,0.05811375]
[1645378985286,1.60544515,2647.7,2647.5,0.05811375]
[1645378985484,1.60544515,2647.6,2647.5,3.55811375]
[1645378985885,1.60544515,2647.6,2647.5,5.15811375]
[1645378986586,0.00237556,2647.7,2647.5,1.65811375]
[1645378986987,0.84073236,2648.2,2647.6,0.05811375]
[1645378986988,1.60544515,2647.9,2647.6,0.05811375]
[1645378987187,0.00237556,2647.7,2647.5,0.3]
[1645378987387,1.60782071,2647.7,2647.3,7.8999524]
[1645378987586,1.60544515,2647.6,2647.3,7.8999524]
[1645378987838,1.60544515,2647.5,2647.4,0.05811375]
[1645378988038,0.00237556,2647.7,2647.4,3.55811375]
[1645378988240,1.60518162,2648.2,2647.4,3.55811375]
[1645378988441,1.1911,2648.4,2647.6,1.88865]
[1645378988442,0.00237548,2647.7,2647.6,1.88865]
[1645378988640,1.60518162,2648.0,2647.6,5.38865]
[1645378988840,0.00419753,2648.0,2647.8,1.06594513]
[1645378989038,1.60503396,2648.2,2647.8,1.06594513]
[1645378989240,1.60503396,2648.1,2647.9,3.55811375]
[1645378989441,0.00419753,2648.3,2647.9,5.44636375]
[1645378989640,0.00419753,2648.5,2648.0,1.94631375]
[1645378989843,0.00419753,2648.6,2648.2,0.87766666]
[1645378990045,4.95153866,2649.4,2648.3,3.5]
[1645378990046,0.00419753,2649.0,2648.3,3.5]
[1645378990245,0.00419753,2649.1,2648.3,4.15789644]
[1645378990446,0.00419753,2649.2,2648.4,3.13445644]
[1645378990645,0.00419753,2649.3,2648.5,1.88766]
[1645378990850,0.00419753,2649.5,2648.5,1.94555644]
[1645378991044,0.00134399,2648.8,2648.6,0.3]
[1645378991243,0.00134399,2648.8,2648.5,1.94555644]
[1645378991502,0.00134399,2648.8,2648.1,3.55789644]
[1645378991695,0.00134399,2648.8,2648.1,3.8]
[1645378991892,0.00419753,2649.0,2648.2,1.0]
[1645378992093,0.00134399,2648.6,2648.2,1.3]
[1645378992490,0.00134399,2648.6,2648.4,1.13825386]
[1645378993093,0.00419753,2649.0,2648.4,1.13825386]
[1645378993297,0.00237212,2648.6,2648.4,1.1961503]
[1645378993893,0.00237212,2648.6,2648.4,0.05789644]
[1645378994296,1.14484095,2649.1,2648.4,0.05789644]
[1645378994594,0.00237212,2648.6,2648.4,0.05789644]
[1645378995450,0.0028606,2648.9,2648.4,0.05789644]
[1645378995653,0.00237212,2648.6,2648.4,0.05789644]
[1645378995848,0.00237212,2648.6,2648.2,1.3]
[1645378996051,0.00237212,2648.6,2648.2,1.35789644]
[1645378996649,0.0028606,2648.9,2648.2,1.35789644]
[1645378996848,0.00237216,2648.5,2648.2,1.35789644]
[1645378997848,0.0028606,2648.9,2648.2,1.35789644]
[1645378998249,0.00237218,2648.5,2648.2,0.35789644]
[1645378998654,0.00237218,2648.5,2648.2,0.05789644]
[1645378999090,0.0028606,2648.9,2648.4,0.9820482]
[1645378999295,0.00237218,2648.5,2648.4,0.9820482]
[1645378999491,0.00237218,2648.5,2648.4,1.9260882]
[1645378999689,0.00237218,2648.5,2648.4,6.08398464]
[1645378999887,0.00237218,2648.5,2648.4,7.08398464]
[1645379000288,0.0028606,2648.9,2648.4,7.08398464]
[1645379000589,0.00419753,2649.2,2648.4,8.02796464]
[1645379000590,0.00134506,2648.6,2648.4,8.02796464]
[1645379000988,0.00134506,2648.6,2648.5,3.5]
[1645379001296,0.00134506,2648.6,2648.5,3.55789644]
[1645379001489,0.00419753,2649.2,2648.6,0.94387]
[1645379001694,0.00419753,2649.2,2648.8,1.8876654]
[1645379001695,0.0094984,2649.1,2648.8,1.8876654]
[1645379001888,0.0094984,2649.1,2648.9,5.43114586]
[1645379002092,0.0094984,2649.1,2648.9,0.65789461]
[1645379002292,0.0094984,2649.1,2648.9,0.5]
[1645379002738,0.00419753,2649.6,2648.9,0.2]
[1645379002937,0.00237478,2649.1,2648.9,0.2]
[1645379003137,0.00237478,2649.1,2648.8,0.86332997]
[1645379003536,0.00237478,2649.1,2648.9,0.3]
[1645379003945,0.00419753,2649.6,2648.9,0.3]
[1645379004138,0.00237478,2649.1,2648.9,0.3]
[1645379005037,0.00419753,2649.6,2648.9,0.3]
[1645379005438,0.00276423,2649.0,2648.9,0.3]
[1645379006496,0.0023748,2649.1,2648.9,0.3]
[1645379007285,0.0023748,2649.1,2648.9,0.35789461]
[1645379007484,0.04035807,2649.6,2648.9,0.35789461]
[1645379007685,0.00237478,2649.1,2648.9,0.35789461]
[1645379008088,0.00237478,2649.1,2649.0,2.51340195]
[1645379008287,0.00237478,2649.1,2649.0,1.0]
[1645379008486,0.00949769,2649.5,2649.0,8.03300461]
[1645379008686,0.25,2650.0,2649.1,8.0]
[1645379008889,0.25,2650.0,2649.2,0.94363]
[1645379009101,0.25,2650.0,2649.3,4.14324]
[1645379009288,7.0325,2650.9,2649.4,1.0]
[1645379009489,3.5,2650.9,2649.5,0.05613469]
[1645379009888,1.9964,2651.0,2649.6,0.05789461]
[1645379010243,3.5,2651.4,2650.3,4.66188536]
[1645379010244,0.00949582,2650.7,2650.3,4.66188536]
[1645379010444,0.25,2651.8,2650.4,12.5]
[1645379010649,5.97542187,2652.1,2650.5,17.296]
[1645379010650,1.5159357,2651.7,2650.5,17.296]
[1645379010841,0.1885,2652.3,2650.6,3.556]
[1645379011041,0.1885,2652.3,2650.7,6.32918]
[1645379011042,0.25,2652.1,2650.7,6.32918]
[1645379011242,0.86166974,2651.6,2650.8,0.92284187]
[1645379011645,0.86166974,2651.6,2650.8,0.98073648]
[1645379011838,0.86166974,2651.6,2650.8,0.05789461]
[1645379012142,0.1885,2652.0,2651.1,0.94307]
[1645379012343,0.25,2652.1,2651.1,0.94307]
[1645379012540,0.08206527,2652.4,2651.2,0.05789461]
[1645379012741,11.54,2652.2,2651.2,0.05789461]
[1645379012940,0.08206527,2652.4,2651.2,0.05789461]
[1645379013139,0.86661758,2651.8,2651.2,0.05789461]
[1645379013339,0.86661758,2651.8,2651.0,4.23185453]
[1645379013641,0.08206527,2652.4,2651.0,3.98974914]
[1645379013841,0.08206527,2652.4,2651.3,0.943]
[1645379014092,0.08206527,2652.4,2651.4,0.9429608]
[1645379014296,0.08206527,2652.4,2651.4,1.00085541]
[1645379014691,0.89895431,2652.1,2651.4,1.00085541]
[1645379014892,0.00236108,2652.0,2651.4,1.00085541]
[1645379015094,0.00236108,2652.0,2651.0,4.23185453]
[1645379015095,1.14104097,2651.7,2651.0,2.8290848]
[1645379015292,0.00236108,2652.0,2651.0,2.8290848]
[1645379015491,0.00247943,2651.5,2651.0,2.8290848]
[1645379016289,0.00236134,2651.4,2651.0,2.8290848]
[1645379016495,0.00236134,2651.4,2651.1,1.03845017]
[1645379016690,0.00236134,2651.4,2651.0,2.88697941]
[1645379017092,0.00247943,2651.5,2651.1,0.05789461]
[1645379017296,0.00236136,2651.3,2651.2,0.943]
[1645379017740,0.00236136,2651.3,2651.2,1.00089461]
[1645379018341,0.00247943,2651.5,2651.2,1.00089461]
[1645379018542,0.00236134,2651.4,2651.2,1.00089461]
[1645379019142,0.00236134,2651.4,2651.1,0.94303]
[1645379019143,0.00236134,2651.4,2651.0,2.07451]
[1645379019546,0.00247943,2651.5,2651.0,2.07451]
[1645379019743,0.00247943,2651.5,2651.0,1.88601]
[1645379019744,0.00236136,2651.3,2651.0,1.88601]
[1645379020145,0.00236136,2651.3,2651.1,1.16380958]
[1645379020646,0.00228226,2651.3,2651.1,1.16380958]
[1645379020846,0.00228226,2651.3,2651.2,0.05789461]
[1645379021048,0.00464362,2651.3,2651.2,0.05789461]
[1645379021483,0.00464362,2651.3,2651.2,1.00089461]
[1645379021986,0.00228226,2651.3,2651.1,0.90684958]
[1645379022192,0.00228226,2651.3,2651.2,3.5]
[1645379022488,0.00236134,2651.4,2651.3,2.256]
[1645379022684,0.00236134,2651.4,2651.3,2.7445]
[1645379022887,0.00944393,2651.8,2651.5,4.7138462]
[1645379023086,0.00414989,2652.1,2651.5,5.6566462]
[1645379023287,0.00414989,2652.1,2651.9,1.01014313]
[1645379023486,0.00414989,2652.6,2651.9,1.01014313]
[1645379023688,0.00414989,2652.6,2651.6,1.35789461]
[1645379024087,0.00414989,2652.6,2651.7,0.05789461]
[1645379024884,0.00414989,2652.6,2651.7,0.89973958]
[1645379025088,0.00414989,2652.6,2651.7,1.19973958]
[1645379025343,0.00414989,2652.7,2651.9,3.1283044]
[1645379025738,0.00414989,2652.7,2652.0,0.35789461]
[1645379025939,1.43262878,2653.1,2652.0,0.35789461]
[1645379026137,2.33863814,2653.1,2652.3,1.14969341]
[1645379026341,0.00414989,2653.1,2652.3,1.14969341]
[1645379026539,0.00414989,2653.1,2652.4,0.05789461]
[1645379026940,0.00235769,2652.8,2652.4,0.05789461]
[1645379028040,0.00414989,2653.0,2652.3,1.14969341]
[1645379028240,0.00235773,2652.7,2652.3,1.14969341]
[1645379028441,0.00235773,2652.7,2652.1,0.05789461]
[1645379029207,0.00414989,2653.0,2652.1,0.05789461]
[1645379029507,0.00235781,2652.5,2652.1,0.05789461]
[1645379030311,0.00631118,2653.0,2652.1,0.05789461]
[1645379030609,0.00235785,2652.4,2652.1,0.05789461]
[1645379031210,0.00235785,2652.4,2652.0,0.6]
[1645379031410,0.00235785,2652.4,2652.1,1.20067807]
[1645379031612,0.00631118,2653.0,2652.1,0.05789461]
[1645379031812,0.00235789,2652.3,2652.1,0.05789461]
[1645379032738,0.00631118,2653.0,2652.1,0.05789461]
[1645379032942,0.00235789,2652.3,2652.1,0.05789461]
[1645379034041,0.00631118,2653.0,2652.1,0.05789461]
[1645379034239,0.00235789,2652.3,2652.1,0.05789461]
[1645379034840,0.00235789,2652.3,2652.1,1.00050461]
[1645379035045,0.00235789,2652.3,2652.2,0.94264]
[1645379035241,0.00414989,2653.0,2652.3,1.8852468]
[1645379035442,0.00943013,2652.7,2652.3,1.8852468]
[1645379035743,0.00943013,2652.7,2652.4,0.05767816]
[1645379036342,0.00414989,2653.0,2652.4,0.05767816]
[1645379036588,0.00235775,2652.7,2652.4,0.05767816]
[1645379037592,0.96982955,2653.0,2652.4,0.05767816]
[1645379037789,0.00235775,2652.7,2652.4,0.05767816]
[1645379038791,0.00414989,2653.3,2652.4,0.05767816]
[1645379038991,0.00214988,2652.7,2652.4,0.05767816]
[1645379039191,0.00214988,2652.7,2652.4,1.03651223]
[1645379039593,0.00214988,2652.7,2652.5,0.05767816]
[1645379039791,0.00214988,2652.7,2652.2,1.84287926]
[1645379039993,0.00414989,2653.1,2652.3,0.05767816]
[1645379040245,0.00214986,2652.7,2652.3,0.05767816]
[1645379040649,0.00215209,2652.6,2652.3,0.05767816]
[1645379040851,0.00215209,2652.6,2652.4,0.91820515]
[1645379041349,0.00215209,2652.6,2652.4,4.10310515]
[1645379041546,0.00414989,2653.3,2652.5,23.296]
[1645379041547,0.00859838,2653.0,2652.5,23.296]
[1645379041749,0.00859838,2653.0,2652.7,7.256]
[1645379041750,0.00131064,2653.0,2652.7,7.256]
[1645379041944,0.00414989,2653.3,2652.8,2.83969137]
[1645379042145,0.96508877,2653.9,2652.8,1.89715427]
[1645379042344,0.96508877,2653.9,2653.0,2.82693]
[1645379042749,0.96508877,2653.9,2653.2,0.3]
[1645379043747,0.00112008,2653.7,2653.2,0.3]
[1645379044393,0.00112008,2653.7,2653.3,0.94229]
[1645379044594,0.00112008,2653.7,2653.3,1.8844935]
[1645379044795,3.0883,2654.2,2653.4,0.94224]
[1645379044996,0.00112008,2653.6,2653.4,0.94224]
[1645379045596,0.00303864,2654.0,2653.4,0.94224]
[1645379045996,1.39557768,2654.5,2653.4,0.94224]
[1645379046199,1.17107083,2654.2,2653.4,0.94224]
[1645379046400,1.17107083,2654.2,2653.2,3.21563426]
[1645379046607,1.17107083,2654.2,2653.3,0.3]
[1645379046801,1.17107083,2654.2,2653.2,2.91563426]
[1645379047403,1.17107083,2654.2,2653.3,1.88458]
[1645379047404,0.00114012,2654.1,2653.3,1.88458]
[1645379048337,1.39830575,2654.1,2653.2,1.03120146]
[1645379048538,1.39944587,2654.1,2653.2,1.03120146]
[1645379048741,0.00114012,2654.1,2653.4,1.8844546]
[1645379049541,1.4519,2654.7,2653.4,1.8844546]
[1645379049742,1.39758518,2654.6,2653.4,1.8844546]
[1645379049939,1.16883029,2654.5,2653.6,1.03034789]
[1645379050138,1.39758518,2654.4,2653.6,1.03034789]
[1645379050551,1.39758518,2654.4,2653.4,1.8844546]
[1645379050552,0.00203626,2654.1,2653.5,1.88424]
[1645379050749,0.00203626,2654.1,2653.1,0.1884]
[1645379050750,5.0,2653.9,2653.1,0.1884]
[1645379050948,12.93758518,2653.8,2653.2,3.5]
[1645379051143,12.93758518,2653.7,2652.9,0.00218989]
[1645379051342,0.44529543,2652.7,2652.6,5.38503]
[1645379051589,0.44529543,2652.7,2652.6,1.88503]
[1645379051791,0.44529543,2652.7,2652.6,2.46311229]
[1645379053192,0.44529543,2652.7,2652.6,1.88503]
[1645379053391,0.44529543,2652.7,2652.1,0.9427155]
[1645379053594,1.10219543,2652.7,2652.1,3.5]
[1645379053793,1.10219543,2652.7,2651.5,3.5]
[1645379054189,1.10219543,2652.7,2651.9,0.9406505]
[1645379054589,1.10219543,2652.7,2652.0,0.00234992]
[1645379054789,0.44529543,2652.7,2652.0,0.00234992]
[1645379055438,0.44729951,2652.7,2652.0,0.00234992]
[1645379055639,0.44729951,2652.7,2651.9,1.5406505]
[1645379055843,0.44729951,2652.7,2652.2,0.00234983]
[1645379056741,1.39573672,2652.6,2651.7,0.9428525]
[1645379057143,1.39573672,2652.6,2652.3,0.00234979]
[1645379057439,0.8832526,2652.6,2652.3,0.00234979]
[1645379057840,12.4232526,2652.6,2652.3,0.00234979]
[1645379058040,11.54,2652.6,2651.7,1.07052975]
[1645379058240,0.00411183,2652.5,2651.7,1.07052975]
[1645379058842,0.00411183,2652.6,2651.7,1.1279887]
[1645379059496,0.00411183,2652.6,2652.0,0.00234925]
[1645379060097,0.00199948,2652.5,2652.0,0.00234925]
[1645379060497,0.00199948,2652.5,2651.7,1.1279887]
[1645379060702,0.00199948,2652.5,2652.2,0.00234919]
[1645379061498,0.00199948,2652.5,2651.7,1.1279887]
[1645379061899,0.00199948,2652.5,2652.2,0.00234918]
[1645379062764,0.00199948,2652.5,2651.7,0.05745895]
[1645379064158,0.00199948,2652.5,2652.0,0.00105268]
[1645379065158,0.00199948,2652.5,2651.8,1.59591074]
[1645379065358,0.00199948,2652.5,2652.1,0.00105262]
[1645379066505,0.00199948,2652.5,2651.8,1.59591074]
[1645379066700,0.00199948,2652.5,2652.2,0.00234919]
[1645379067599,0.00199948,2652.5,2651.8,1.59591074]
[1645379067799,0.00199948,2652.5,2652.2,0.00234918]
[1645379068200,0.00199948,2652.5,2652.3,0.93513512]
[1645379069001,0.00199948,2652.5,2652.3,0.00234916]
[1645379070003,0.00199948,2652.5,2652.2,0.99109117]
[1645379070237,0.45140444,2652.7,2652.3,0.00234916]
[1645379070438,0.40885753,2652.7,2652.3,0.00234916]
[1645379071239,0.40885753,2652.7,2652.2,0.99109117]
[1645379071443,0.41296936,2652.7,2652.4,0.00234912]
[1645379071643,0.40885753,2652.7,2652.4,0.00234912]
[1645379072442,0.40885753,2652.7,2652.2,0.99109117]
[1645379072740,0.41296936,2652.7,2652.4,0.0023491]
[1645379072940,0.40885753,2652.7,2652.4,0.0023491]
[1645379074190,0.00176121,2652.3,2651.9,3.56328697]
[1645379074391,0.00176121,2652.3,2651.9,2.56328697]
[1645379074888,0.00176121,2652.3,2651.6,4.69584869]
[1645379075089,0.00176121,2652.3,2651.9,1.06391917]
[1645379075290,0.00176121,2652.3,2651.9,1.66391917]
[1645379076291,0.00176121,2652.3,2652.0,0.00105268]
[1645379077291,0.00176121,2652.3,2651.9,1.66391917]
[1645379077489,0.00176121,2652.3,2652.0,0.200938]
[1645379078354,0.00176121,2652.3,2652.0,0.19988534]
[1645379078555,0.00176121,2652.3,2652.0,0.20223459]
[1645379079654,0.00176121,2652.3,2652.0,0.19988534]
[1645379079854,0.00176121,2652.3,2652.0,0.20223459]
[1645379080254,0.00199258,2652.2,2652.0,0.20223459]
[1645379080857,0.00199258,2652.2,2652.0,0.19988534]
[1645379081058,1.39479115,2652.2,2652.0,0.20223461]
[1645379081258,0.00199258,2652.2,2652.0,0.20223461]
[1645379081996,0.00199258,2652.2,2652.0,0.19988534]
[1645379082191,0.00199258,2652.2,2652.0,0.20223461]
[1645379083193,0.00199258,2652.2,2652.0,0.19988534]
[1645379083493,0.00199258,2652.2,2652.0,0.20223461]
[1645379084093,0.00199258,2652.2,2652.1,0.01224445]
[1645379084295,0.00199258,2652.2,2652.1,0.21212979]
[1645379086545,0.00199258,2652.2,2652.1,0.01224445]
[1645379088447,0.00199258,2652.2,2652.1,0.21202781]
[1645379088648,0.00199258,2652.2,2652.1,0.01224445]
[1645379089491,0.00199258,2652.2,2652.0,0.00234925]
[1645379089694,0.00199258,2652.2,2652.0,0.20217182]
[1645379090492,0.00199258,2652.2,2652.0,0.19982257]
[1645379090693,0.00199258,2652.2,2652.0,0.20217184]
[1645379091695,0.00199258,2652.2,2652.0,0.19982257]
[1645379091896,0.00199258,2652.2,2652.0,0.20217184]
[1645379092595,0.00176121,2652.3,2652.2,0.00398515]
[1645379092841,0.00176121,2652.3,2652.2,1.09318001]
[1645379093044,0.00176121,2652.3,2652.2,1.29300258]
[1645379094042,0.00176121,2652.3,2652.2,0.20380772]
[1645379094243,0.00176121,2652.3,2652.2,0.00398515]
[1645379094443,0.00176121,2652.3,2652.2,0.20420653]
[1645379094643,0.00176121,2652.3,2652.2,0.00398515]
[1645379094842,0.00176121,2652.3,2652.2,0.20421242]
[1645379095053,0.93648941,2652.3,2651.5,2.56328697]
[1645379095246,11.54,2652.1,2651.7,3.5]
[1645379095446,1.39308067,2652.0,2651.8,0.20748068]
[1645379095744,1.39308067,2652.0,2651.9,0.20748068]
[1645379096145,1.39308067,2652.0,2651.6,0.20748068]
[1645379096344,1.39308067,2652.0,2651.7,0.20748068]
[1645379096604,1.39308067,2652.0,2651.8,0.20748068]
[1645379096803,1.39308067,2652.0,2651.9,0.20748068]
[1645379097407,12.93308067,2652.0,2651.5,0.20748068]
[1645379097608,11.54,2652.0,2651.6,0.20748068]
[1645379097806,0.00199028,2652.1,2651.1,3.27073566]
[1645379097807,11.54,2651.8,2651.3,0.20748068]
[1645379098014,11.54,2651.6,2651.4,0.19148694]
[1645379098210,11.54,2651.4,2651.1,2.56328697]
[1645379098407,1.38894727,2651.3,2651.2,0.1935958]
[1645379098608,1.38894727,2651.3,2651.1,2.56328697]
[1645379098811,11.54,2651.6,2650.6,5.26251081]
[1645379099006,11.54,2651.6,2650.7,0.70744869]
[1645379099207,11.54,2651.6,2651.1,0.00216891]
[1645379099407,0.71632187,2651.7,2651.1,0.00216891]
[1645379099408,11.54,2651.7,2651.1,0.00216891]
[1645379099906,12.72116331,2651.6,2651.1,0.00216891]
[1645379100110,12.72116331,2651.6,2650.7,2.56328697]
[1645379100346,12.72116331,2651.6,2651.3,0.00216885]
[1645379100843,0.95236593,2652.0,2651.3,0.00216885]
[1645379100844,0.00184972,2652.0,2651.3,0.00216885]
[1645379101043,0.00184972,2652.0,2651.4,0.05741478]
[1645379101643,0.00184972,2652.0,2651.5,0.00216875]
[1645379101943,0.00184972,2652.0,2651.6,1.127]
[1645379102842,0.00184972,2652.0,2651.7,0.00216869]
[1645379103743,0.00184972,2652.0,2651.6,1.18441478]
[1645379104009,0.00184972,2652.0,2651.7,0.00215173]
[1645379104398,0.71817159,2652.0,2651.7,0.00215173]
[1645379104901,12.62886164,2651.9,2651.6,1.18441478]
[1645379105100,12.62886164,2651.9,2651.7,0.00215173]
[1645379105304,1.09070906,2651.9,2651.7,0.00215173]
[1645379106101,1.09070906,2651.9,2651.6,1.127]
[1645379106102,0.00184742,2651.9,2651.6,1.127]
[1645379106400,0.00184742,2651.9,2651.7,0.00215175]
[1645379106602,11.54184742,2651.9,2651.7,0.00215175]
[1645379107299,11.54184742,2651.9,2651.0,1.127]
[1645379107502,12.44614511,2651.8,2651.7,0.00215421]
[1645379107950,11.54,2651.8,2651.7,0.00215421]
[1645379108348,11.54,2651.8,2651.0,1.127]
[1645379108547,11.54184742,2651.9,2651.0,1.127]
[1645379108749,11.54184742,2651.9,2651.6,0.00215423]
[1645379108949,0.00184742,2651.9,2651.6,0.00215423]
[1645379109150,0.00184742,2651.9,2651.8,1.6712816]
[1645379109651,11.54184742,2651.9,2651.8,1.6712816]
[1645379109853,0.00184742,2651.9,2651.8,1.6712816]
[1645379110651,0.71632187,2652.0,2651.8,1.6712816]
[1645379110852,0.80037925,2652.1,2651.8,1.6712816]
[1645379111057,0.08405738,2652.1,2651.8,1.6712816]
[1645379111254,0.71808308,2652.3,2651.8,1.6712816]
[1645379111255,0.32007519,2652.3,2651.8,1.72869638]
[1645379111506,1.64087519,2652.6,2651.8,1.72869638]
[1645379111695,0.32007519,2652.6,2651.8,1.72869638]
[1645379112396,0.32007519,2652.6,2652.0,0.00215378]
[1645379113195,0.32007519,2652.6,2651.8,1.72869638]
[1645379113394,0.32007519,2652.6,2652.0,0.00215382]
[1645379114398,0.32007519,2652.6,2652.3,0.5442816]
[1645379114596,0.32007519,2652.6,2652.4,1.127]
[1645379114999,0.40686035,2652.7,2652.3,0.01950691]
[1645379115445,0.00193703,2652.5,2652.3,0.01950691]
[1645379116043,0.00193703,2652.5,2652.0,0.00215395]
[1645379116645,0.00193703,2652.5,2652.0,0.05956873]
[1645379116847,0.00193703,2652.5,2651.7,0.8408175]
[1645379117045,0.00193703,2652.5,2652.0,0.00215384]
[1645379118047,0.00193703,2652.5,2651.7,1.19823228]
[1645379118352,0.00193703,2652.5,2652.0,0.00215383]
[1645379118546,13.92636789,2652.5,2652.0,0.00215383]
[1645379118750,1.36703957,2652.4,2652.0,0.00215383]
[1645379119193,1.36703957,2652.4,2651.8,0.22602898]
[1645379119397,1.36703957,2652.4,2652.0,0.00215381]
[1645379119594,1.36703957,2652.3,2652.0,0.00215381]
[1645379119795,1.36703957,2652.2,2652.0,0.00215381]
[1645379119998,0.00193703,2652.5,2652.0,0.28545638]
[1645379120195,0.00193473,2652.4,2652.1,0.22602898]
[1645379124445,0.00193473,2652.4,2652.1,0.28330257]
[1645379124643,0.00193473,2652.4,2652.2,0.22602898]
[1645379125044,0.00193473,2652.4,2652.2,0.28330257]
[1645379125244,1.3691713,2652.6,2652.2,0.05727359]
[1645379126508,1.36782894,2652.6,2652.2,0.05727359]
[1645379126997,1.36782894,2652.6,2652.0,0.0021539]
[1645379127397,1.36782894,2652.6,2652.0,0.05942749]
[1645379127597,1.36782894,2652.6,2652.0,0.05727359]
[1645379127799,1.36782894,2652.6,2652.0,0.05942745]
[1645379128801,1.36782894,2652.6,2652.0,0.05727359]
[1645379128998,1.36782894,2652.6,2652.0,0.05942744]
[1645379129998,0.00193244,2652.6,2652.0,0.05727359]
[1645379130248,0.00193244,2652.6,2652.0,0.05942744]
[1645379130449,0.00193244,2652.6,2652.0,0.00215385]
[1645379131052,11.54,2652.5,2652.0,0.00215385]
[1645379131256,11.54,2652.5,2651.6,4.44884697]
[1645379131456,11.54,2652.5,2652.0,0.00215385]
[1645379132551,11.54,2652.5,2651.6,2.95408897]
[1645379132751,11.54,2652.5,2652.0,0.00215383]
[1645379133552,11.54,2652.5,2651.6,5.57464953]
[1645379133753,0.71941572,2652.6,2651.6,5.57464953]
[1645379134008,0.71941572,2652.6,2652.0,0.00215383]
[1645379134394,0.00193244,2652.6,2652.0,0.00215383]
[1645379134796,0.00193244,2652.6,2651.6,5.57464953]
[1645379135098,0.00193244,2652.6,2652.0,0.00215386]
[1645379135296,0.00193473,2652.4,2652.0,0.00215386]
[1645379135496,0.00193473,2652.4,2652.1,0.05727359]
[1645379140353,0.40879279,2652.7,2652.1,0.05727359]
[1645379140756,0.40879279,2652.7,2652.1,3.55727359]
[1645379141159,0.40879279,2652.7,2652.2,0.05727359]
[1645379141360,0.40879279,2652.7,2652.1,3.5]
[1645379141592,0.40879279,2652.7,2652.0,0.0021539]
[1645379141798,0.40879279,2652.7,2652.1,0.05727359]
[1645379146154,0.40879279,2652.7,2652.0,1.08693973]
[1645379146455,1.35759237,2652.6,2652.1,0.23578996]
[1645379147067,1.35759237,2652.6,2652.1,0.29306355]
[1645379147256,1.35759237,2652.6,2652.2,0.23578996]
[1645379147658,1.35759237,2652.6,2652.2,0.29306355]
[1645379147856,1.35759237,2652.6,2652.3,0.23578996]
[1645379149601,1.35759237,2652.6,2652.4,0.05727359]
[1645379149801,1.35759237,2652.6,2652.0,1.08693975]
[1645379149802,0.04025262,2652.3,2652.0,1.08693975]
[1645379150000,1.35759237,2652.2,2652.1,0.23691591]
[1645379150401,1.35734837,2652.2,2652.1,0.2941895]
[1645379151804,1.35734837,2652.2,2652.1,0.23691591]
[1645379152008,1.35734837,2652.2,2652.0,0.00215379]
[1645379152857,1.35734837,2652.2,2651.8,0.23710087]
[1645379153059,1.35734837,2652.2,2652.0,0.00215377]
[1645379153464,12.89734837,2652.2,2652.0,0.00215377]
[1645379153666,13.61483165,2652.1,2652.0,0.00215377]
[1645379153862,13.61591782,2652.1,2652.0,0.00215377]
[1645379154062,13.61591782,2652.1,2651.4,0.24248062]
[1645379154262,11.54,2651.9,2651.4,0.24248062]
[1645379154460,11.40177777,2651.9,2651.4,0.24248062]
[1645379155270,11.40177777,2652.0,2651.4,0.24248062]
[1645379155463,11.40177777,2652.0,2651.5,0.00215395]
[1645379155866,11.40177777,2651.8,2651.5,0.00215395]
[1645379156503,11.40177777,2651.8,2651.1,3.66476518]
[1645379156794,11.40177777,2651.8,2651.5,0.00215395]
[1645379157594,11.40177777,2651.8,2651.1,1.15853881]
[1645379157795,0.90899959,2652.2,2651.5,1.09212013]
[1645379157995,0.72049959,2652.2,2651.5,1.09427409]
[1645379158598,0.00193014,2652.2,2651.5,1.09427409]
[1645379158798,0.00193014,2652.2,2651.5,1.09212013]
[1645379158799,11.54,2652.1,2651.5,1.09212013]
[1645379158995,0.72049959,2652.2,2651.5,1.09212013]
[1645379159197,0.72049959,2652.2,2651.7,0.00215388]
[1645379159398,0.72049959,2652.2,2651.5,1.08783748]